Cogmind - Beta 13 @@@ ROGUE MODE // 2024.04.29 @ 17:37:58 Player: Sherlockkat Result: Destroyed by as-63750 with Assembled Maul Performance ------------- Evolutions (3) 1500 Regions Visited (8) 1600 Robots Destroyed (123) 615 Value Destroyed (4023) 4023 Prototype IDs (15) 300 Alien Tech Used (0) 0 Bonus (1969) 1969 TOTAL SCORE: 10007 Bonus ------- High Alert Combat Kills 216 Follower Combat Kills 74 Met Imprinter 300 Destroyed Z-Imprinter 1000 Triggered Deep Caves Wall 500 Exposed GOLEM Chamber 500 Friendly Fire -621 Cogmind --------- Core Integrity 0/700 Matter 295/300 Energy 96/100 System Corruption 10% Temperature Cool (0) Movement Core (50) Location -7/Deep Caves Parts ------- > --- POWER (1) -------- (None) > --- PROPULSION (5) --- (None) > --- UTILITY (4) ------ (None) > --- WEAPON (3) ------- (None) > --- INVENTORY (5) ---- Heavy Armor Plating Long-range Tractor Beam GOLEM Unit Peak State ------------ > --- POWER ------------ Zionite Light DM Reactor > --- PROPULSION ------- Advanced Treads Advanced Treads Advanced Treads Medium Treads Medium Treads > --- UTILITY ---------- Experimental Heat Sink Huge Storage Unit Surveybot 24 Chip Zionite Weapon Casing > --- WEAPON ----------- Improved EM Pulse Cannon Improved Light Cannon Katana > --- INVENTORY -------- Zionite Light DM Reactor Zionite Light DM Reactor Light Treads Medium Treads Experimental Heat Sink Improved Cooling System Medium Storage Unit Zionite Biocell Energy Filter Kinecellerator Kinecellerator Improved Propulsion Shielding Zionite Weapon Casing Heavy Armor Plating Zionite Light Carapace Improved Light Armor Plating Improved Medium Armor Plating Shield Generator Long-range Tractor Beam Lightning Gun Plasma Cannon Precision Assault Rifle Shock Bomb Launcher Grenade Launcher [Rating: 66] Favorites ----------- Power Cooled Deuterium Engine Engine Cooled Deuterium Engine Reactor Zionite Light DM Reactor Propulsion Advanced Treads Treads Advanced Treads Leg Aluminum Leg Wheel Wheel Utility Huge Storage Unit Device Improved Heat Sink Storage Huge Storage Unit Processor Surveybot 24 Chip Hackware Hacking Suite Protection Improved Light Armor Plating Weapon Gauss Rifle Energy Gun Medium Laser Energy Cannon Advanced Beam Cannon Ballistic Gun Gauss Rifle Ballistic Cannon Improved Light Cannon Launcher Shock Bomb Launcher Special Weapon RU-N14's Throwing Claymores Slashing Weapon Katana Build | -11 -10 -9 -8 -7 -7 -7 -7 -7 ------- Run | Yrd Mat Mat Mat Fac Low Low Zio Dee Slots Evolved 6 | . . 2 2 2 . . . . Power . | . . . . . . . . . Propulsion 3 | . . 1 1 1 . . . . Utility 2 | . . 1 1 . . . . . Weapon 1 | . . . . 1 . . . . Parts Attached 141 | 6 6 12 30 52 9 1 8 17 Power 8 | 1 1 2 1 2 . . . 1 Engine 7 | 1 1 2 1 2 . . . . Core . | . . . . . . . . . Reactor 1 | . . . . . . . . 1 Propulsion 41 | 2 . 6 8 17 3 . 2 3 Treads 38 | 2 . 3 8 17 3 . 2 3 Leg 1 | . . 1 . . . . . . Wheel 2 | . . 2 . . . . . . Hover . | . . . . . . . . . Flight . | . . . . . . . . . Utility 37 | 1 3 3 10 11 1 . 1 7 Device 10 | 1 1 . 2 4 . . 1 1 Storage 8 | . 2 1 3 . . . . 2 Processor 2 | . . . . 1 . . . 1 Hackware 1 | . . . . 1 . . . . Protection 16 | . . 2 5 5 1 . . 3 Artifact . | . . . . . . . . . Weapon 55 | 2 2 1 11 22 5 1 5 6 Energy Gun 6 | . 1 . 4 1 . . . . Energy Cannon 10 | . . . 2 5 1 . . 2 Ballistic Gun 17 | 2 1 1 2 8 3 . . . Ballistic Cannon 3 | . . . 1 1 . . 1 . Launcher 7 | . . . 2 2 1 1 . 1 Special Weapon 5 | . . . . . . . 3 2 Impact Weapon . | . . . . . . . . . Slashing Weapon 7 | . . . . 5 . . 1 1 Piercing Weapon . | . . . . . . . . . Special Melee Weapon . | . . . . . . . . . Unidentified Prototypes 15 | . . 2 3 4 . . 1 5 Corrupted Parts 4 | . . . 1 1 . . 2 . System Corruption 17 | . . . 1 4 . . 12 . Parts Lost 27 | . . 2 3 8 5 . . 9 Power . | . . . . . . . . . Propulsion 14 | . . 1 . 5 2 . . 6 Utility 7 | . . . 2 2 1 . . 2 Weapon 6 | . . 1 1 1 2 . . 1 Highest Loss Streak 6 | . . 1 1 2 4 . . 6 To Critical Strikes . | . . . . . . . . . Average Slot Usage (%) 98 | . 96 86 99 99 97 92 98 99 Engine 6 | . 14 11 9 7 7 7 7 1 Reactor 1 | . . . . . . . . 5 Treads 35 | . 28 17 36 37 36 38 38 37 Device 10 | . 18 11 17 11 7 7 7 7 Storage 8 | . 5 11 9 7 7 7 7 13 Hackware 2 | . . . . 2 7 7 7 . Protection 6 | . . 6 9 6 6 7 7 6 Energy Gun 1 | . 10 11 5 . . . . . Energy Cannon 5 | . . . 2 11 6 5 . 6 Ballistic Gun 8 | . 17 11 7 9 13 7 7 . Ballistic Cannon 1 | . . . 1 . . . . 7 Special Weapon 1 | . . . . . . . 5 . Slashing Weapon 2 | . . . . . . . 5 6 Naked Turns 1 | . . . . . . . . 1 Heaviest Build 115 | 8 89 26 100 115 110 106 112 112 Greatest Support 126 | 40 40 64 86 114 106 106 122 126 Greatest Overweight (x) 2 | . 2 2 1 1 2 . . 1 Average Overweight (x) . | . . . . . . . . . Largest Inventory Capacity 25 | 5 25 10 25 25 25 25 25 25 Average Capacity 21 | 5 10 8 10 25 25 25 25 24 Most Carried 25 | 1 7 10 16 25 25 25 25 25 Average Carried 20 | . 5 8 9 23 24 24 24 24 Final Capacity 25 | 5 8 10 25 25 25 25 25 5 Final Carried 25 | 1 7 10 16 25 21 25 24 5 Class Distribution -------------------- 41% | Mutant 22% | Scavenger-Mutant 20% | Tank 14% | Scavenger-Tank Dominant Class ---------------- Mutant | -10/Materials Mutant | -9/Materials Mutant | -8/Materials Tank | -7/Factory Scavenger-Tank | -7/Lower Caves Mutant | -7/Lower Caves Mutant | -7/Zion Scavenger-Mutant | -7/Deep Caves Resources | -11 -10 -9 -8 -7 -7 -7 -7 -7 ----------- Run | Yrd Mat Mat Mat Fac Low Low Zio Dee Matter Collected 2955 | 200 217 161 698 970 174 289 59 187 Remotely 394 | . . . 394 . . . . . Salvage Created 6111 | 39 460 449 1566 2166 215 349 . 867 Parts 300 | 7 27 18 100 111 8 13 . 16 Haulers Intercepted 8 | . 1 1 3 3 . . . . Recyclers Shooed 10 | 1 4 3 1 1 . . . . Parts Field Recycled . | . . . . . . . . . Retrieved Matter . | . . . . . . . . . Parts Self-Destructed 6 | . . . . . 3 2 1 . Prevented 6 | . . . . . 4 2 . . Kills | -11 -10 -9 -8 -7 -7 -7 -7 -7 ------- Run | Yrd Mat Mat Mat Fac Low Low Zio Dee Combat Hostiles Destroyed 110 | . 6 7 24 35 4 4 . 30 Guns 42 | . 6 7 15 14 . . . . Cannons 24 | . . . 3 14 . . . 7 AOE 37 | . . . 6 2 3 4 . 22 Classes Destroyed 17 | 1 6 2 2 1 1 1 . 3 Worker 4 | . 1 . 2 1 . . . . Builder 1 | . 1 . . . . . . . Tunneler 5 | 3 . . . 2 . . . . Hauler 8 | . 1 1 3 3 . . . . Recycler 11 | . 3 1 5 2 . . . . Operator 2 | . . 1 . 1 . . . . Watcher 1 | . . . 1 . . . . . Swarmer 18 | . 3 . 7 4 . 4 . . Grunt 35 | . 3 4 9 16 3 . . . Brawler 3 | . . . 1 2 . . . . Duelist 1 | . . . . . 1 . . . Sentry 17 | . . 3 7 7 . . . . Programmer 6 | . . . . 6 . . . . Z-Light 6 | . . . . . . . . 6 Packrat 2 | . . . . . . 2 . . Samaritan 2 | . . . . . . 2 . . Assembled 22 | . . . . . . . . 22 Golem 1 | . . . . . . . . 1 Thug 2 | . . . . . . . . 2 Butcher 1 | . . . . . . . . 1 Best Kill Streak 16 | 3 3 2 8 7 3 4 . 16 Combat Bots Only 16 | . 3 2 5 6 3 4 . 16 Max Kills in Single Turn 5 | 1 1 1 2 1 3 2 . 5 Gunslinging . | . . . . . . . . . Exploded 5 | . . . 1 1 3 2 . 5 Melee . | . . . . . . . . . Uniques/NPCs Destroyed 1 | . . . . . . . . 1 Z-Imprinter (-7/Deep Caves) Combat | -11 -10 -9 -8 -7 -7 -7 -7 -7 -------- Run | Yrd Mat Mat Mat Fac Low Low Zio Dee Hostile Shots Fired 632 | . 34 47 102 336 35 8 . 70 Missed 177 | . 6 12 24 110 4 4 . 17 Damage Taken 6899 | . 281 454 1088 2672 831 61 . 1512 Core 948 | . 43 85 120 370 22 . . 308 Absorbed by Shields . | . . . . . . . . . Redirected to Shielding 172 | . . 21 31 . . . . 120 Core Remaining (%) 84 | 100 82 78 78 . . . . . Volleys Fired 362 | 12 49 46 88 94 15 14 6 38 Largest 3 | 2 2 2 2 3 1 1 1 1 Hottest 175 | 40 70 70 93 175 80 69 39 69 Shots Fired 710 | 24 97 92 165 258 15 15 6 38 Gun 454 | 24 97 92 136 104 1 . . . Cannon 207 | . . . 18 149 5 10 1 24 Launcher 35 | . . . 11 5 9 5 . 5 Special 14 | . . . . . . . 5 9 Kinetic 340 | 24 74 46 80 114 1 . 1 . Thermal 234 | . 23 46 21 139 5 . . . Explosive 21 | . . . 7 . . . 5 9 Electromagnetic 115 | . . . 57 5 9 15 . 29 Robot Hit Streak 18 | 3 18 14 15 11 4 5 . 7 Robot Miss Streak 5 | 5 4 2 3 3 2 1 . 4 Penetration Max 1 | . . . . 1 . . . . Secondary Targets . | . . . . . . . . . Shots Hit Robots 457 | 9 62 70 113 155 9 12 . 27 Core Hits 269 | 7 25 23 60 74 7 13 . 60 Critical Kills 6 | . . . . 6 . . . . Critical Parts Destroyed 2 | . . . 1 1 . . . . Critical Strikes 19 | . 2 2 3 7 . . . 5 Burn 5 | . 2 2 1 . . . . . Meltdown 5 | . . . . 5 . . . . Destroy 3 | . . . 1 2 . . . . Corrupt 3 | . . . 1 . . . . 2 Sever 3 | . . . . . . . . 3 Melee Attacks 28 | . . . . 8 . . 9 11 Impact . | . . . . . . . . . Slashing 28 | . . . . 8 . . 9 11 Piercing . | . . . . . . . . . Sneak Attacks 3 | . . . . . . . . 3 Combat Hostiles . | . . . . . . . . . Follow-up Attacks . | . . . . . . . . . Damage Inflicted 11500 | 114 584 750 2384 3522 415 508 . 3223 Guns 4062 | 114 584 750 1382 1232 . . . . Cannons 3081 | . . . 266 2074 72 323 . 346 Explosions 3808 | . . . 736 216 343 185 . 2328 Melee 280 | . . . . . . . . 280 Ramming . | . . . . . . . . . Kinetic 3010 | 114 358 338 844 1356 . . . . Thermal 3344 | . 226 412 496 1970 168 . . 72 Explosive 1550 | . . . 312 . . . . 1238 Electromagnetic 3047 | . . . 732 196 247 508 . 1364 Impact . | . . . . . . . . . Slashing 549 | . . . . . . . . 549 Piercing . | . . . . . . . . . Highest Corruption 30 | . . . 1 17 18 18 30 10 Average Corruption 9 | . . . 1 7 17 18 22 5 Corruption Purged . | . . . . . . . . . Corruption Blocked . | . . . . . . . . . Effects 153 | . . . 3 72 54 21 3 . Message Errors 39 | . . . 2 19 12 5 1 . Matter Fused 40 | . . . . 16 20 3 1 . Heat Flow Errors 11 | . . . . 5 6 . . . Energy Discharges 23 | . . . 1 14 4 4 . . Parts Fused 2 | . . . . 1 . 1 . . Data Loss (minor) 21 | . . . . 7 7 6 1 . Data Loss (major) 4 | . . . . 3 . 1 . . Misfires 5 | . . . . 3 1 1 . . Alerts 4 | . . . . 2 2 . . . Misdirections 1 | . . . . . 1 . . . Weapon Failures 3 | . . . . 2 1 . . . Overload Shots . | . . . . . . . . . Overflow Damage 284 | . . . . 57 8 26 . 193 Projectiles 101 | . . . . 57 8 26 . 10 Explosions 130 | . . . . . . . . 130 Melee 53 | . . . . . . . . 53 Knockbacks . | . . . . . . . . . Impact . | . . . . . . . . . Kinetic . | . . . . . . . . . Secondary . | . . . . . . . . . Self-Inflicted Damage 320 | . . . 48 43 93 . . 136 Shots 15 | . . . 2 3 5 . . 5 Rammed . | . . . . . . . . . Targets Rammed . | . . . . . . . . . Kicked . | . . . . . . . . . Crushed . | . . . . . . . . . Highest Temperature 600 | . 126 397 193 600 200 . . 36 Average Temperature 81 | . 38 55 39 122 76 . . 17 Received Heat Transfer 1901 | . 87 183 468 660 156 . . 347 Effects 15 | . . . . 15 . . . . Shutdowns 2 | . . . . 2 . . . . Energy Bleed 2 | . . . . 2 . . . . Interference 7 | . . . . 7 . . . . Matter Decay 1 | . . . . 1 . . . . Damage (minor) 1 | . . . . 1 . . . . Damage (major) 1 | . . . . 1 . . . . Damage (core) 1 | . . . . 1 . . . . Siege Activations . | . . . . . . . . . Robots Corrupted 2 | . . . . . 1 . . 1 Combat Hostiles 2 | . . . . . 1 . . 1 Parts Fried 9 | . . . 2 . . 7 . . Impact Corruptions . | . . . . . . . . . Robots Melted 6 | . . . . 6 . . . . Combat Hostiles 5 | . . . . 5 . . . . Parts Melted 22 | . 2 4 . 16 . . . . Heat Transferred 6833 | . 814 1369 929 3421 250 . . 50 Parts Sabotaged . | . . . . . . . . . Parts Stolen . | . . . . . . . . . Parts Stripped . | . . . . . . . . . Power Chain Reactions 7 | . . . 4 1 1 . . 1 Alert | -11 -10 -9 -8 -7 -7 -7 -7 -7 ------- Run | Yrd Mat Mat Mat Fac Low Low Zio Dee Peak Influence 645 | 15 98 228 548 645 . . . . Initial 249 | . 9 10 13 249 . . . . Average 301 | 2 51 121 290 412 . . . . Maximum Alert Level 2 | . . 1 2 2 . . . . Low Security (%) 33 | 100 100 75 35 4 . . . . Level 1 37 | . . 24 34 52 . . . . Level 2 29 | . . . 29 43 . . . . Level 3 . | . . . . . . . . . Level 4 . | . . . . . . . . . Level 5 . | . . . . . . . . . High Security . | . . . . . . . . . Max Security . | . . . . . . . . . Squads Dispatched 16 | . . 2 3 11 . . . . Investigation 2 | . . . 1 1 . . . . Extermination 5 | . . . . 5 . . . . Reinforcement 6 | . . 2 2 2 . . . . Assault . | . . . . . . . . . Garrison 3 | . . . . 3 . . . . Intercept . | . . . . . . . . . Searches Triggered . | . . . . . . . . . Construction Impeded 1 | . . . 1 . . . . . Haulers Reinforced . | . . . . . . . . . Active Scanning Responses . | . . . . . . . . . Cargo Convoy Interrupts . | . . . . . . . . . Stealth | -11 -10 -9 -8 -7 -7 -7 -7 -7 --------- Run | Yrd Mat Mat Mat Fac Low Low Zio Dee Distress Signals 7 | . . 1 3 3 . . . . Communications Jammed . | . . . . . . . . . Distress Signals . | . . . . . . . . . Times Spotted 169 | . 10 11 39 48 5 4 . 52 Peak Tracking Total 29 | . 3 4 7 6 4 4 . 29 Tactical Retreats 12 | . . . 7 3 1 . . 1 Traps | -11 -10 -9 -8 -7 -7 -7 -7 -7 ------- Run | Yrd Mat Mat Mat Fac Low Low Zio Dee Traps Triggered 7 | . . . 1 6 . . . . Indirectly 3 | . . . . 3 . . . . Trap Hack Attempts . | . . . . . . . . . Triggered . | . . . . . . . . . Disarmed . | . . . . . . . . . Reprogrammed . | . . . . . . . . . Reused . | . . . . . . . . . Traps Extracted . | . . . . . . . . . Installed . | . . . . . . . . . Triggered . | . . . . . . . . . Machines | -11 -10 -9 -8 -7 -7 -7 -7 -7 ---------- Run | Yrd Mat Mat Mat Fac Low Low Zio Dee Machines Disabled 6 | . . . 1 2 . . 1 2 Max in Single Turn 1 | . . . 1 1 . . 1 1 Garrison Access 1 | . . . . 1 . . . . Machines Repaired . | . . . . . . . . . Machines Dismantled . | . . . . . . . . . Machines Sabotaged . | . . . . . . . . . Overloaded Fab Kills . | . . . . . . . . . Hacking | -11 -10 -9 -8 -7 -7 -7 -7 -7 --------- Run | Yrd Mat Mat Mat Fac Low Low Zio Dee Machines Accessed 11 | . 2 2 2 5 . . . . Terminals 8 | . 2 . 2 4 . . . . Fabricators . | . . . . . . . . . Repair Stations . | . . . . . . . . . Recycling Units 2 | . . 2 . . . . . . Scanalyzers . | . . . . . . . . . Garrison Access 1 | . . . . 1 . . . . Total Hacks 20 | . 2 5 2 11 . . . . Successful 9 | . 2 2 2 3 . . . . Failed 11 | . . 3 . 8 . . . . Catastrophic 4 | . . . . 4 . . . . Database Lockouts . | . . . . . . . . . Manual 9 | . 2 . 2 5 . . . . Terminals 13 | . 2 . 2 9 . . . . Fabricators . | . . . . . . . . . Repair Stations . | . . . . . . . . . Recycling Units 5 | . . 5 . . . . . . Scanalyzers . | . . . . . . . . . Garrison Access 2 | . . . . 2 . . . . Terminal Hacks 2 | . . . . 2 . . . . Open DSF 1 | . . . . 1 . . . . Branch Access Points 1 | . . . . 1 . . . . Fabricator Hacks . | . . . . . . . . . Repair Station Hacks . | . . . . . . . . . Recycling Unit Hacks 2 | . . 2 . . . . . . Retrieve Components 2 | . . 2 . . . . . . Scanalyzer . | . . . . . . . . . Garrison Access Hacks 1 | . . . . 1 . . . . Seal Access 1 | . . . . 1 . . . . Unauthorized Hacks 4 | . 2 . 2 . . . . . Terminals 4 | . 2 . 2 . . . . . Track 4 | . 2 . 2 . . . . . Fabricators . | . . . . . . . . . Repair Stations . | . . . . . . . . . Recycling Units . | . . . . . . . . . Scanalyzers . | . . . . . . . . . Garrison Access . | . . . . . . . . . Data Cores Recovered . | . . . . . . . . . Used . | . . . . . . . . . Hacking Detections 8 | . 2 1 . 5 . . . . Full Trace Events 1 | . . . . 1 . . . . Feedback Events . | . . . . . . . . . Feedback Blocked . | . . . . . . . . . Robot Schematics Acquired 4 | . . . . . . . 4 . Robots Built . | . . . . . . . . . Authchips . | . . . . . . . . . Time . | . . . . . . . . . Total Robot Build Rating . | . . . . . . . . . Part Schematics Acquired 15 | . . . . . . . 15 . Parts Built . | . . . . . . . . . Authchips . | . . . . . . . . . Time . | . . . . . . . . . Total Part Build Rating . | . . . . . . . . . Parts Repaired . | . . . . . . . . . Time . | . . . . . . . . . Parts Recycled . | . . . . . . . . . Recycled Matter . | . . . . . . . . . Retrieved Matter . | . . . . . . . . . Retrieved Components 16 | . . 16 . . . . . . Parts Scanalyzed . | . . . . . . . . . Part Schematics Acquired . | . . . . . . . . . Parts Damaged . | . . . . . . . . . Bothacking | -11 -10 -9 -8 -7 -7 -7 -7 -7 ------------ Run | Yrd Mat Mat Mat Fac Low Low Zio Dee Used RIF Installer . | . . . . . . . . . Robots Hacked . | . . . . . . . . . Non-combat . | . . . . . . . . . Combat . | . . . . . . . . . Robot Hacks Applied . | . . . . . . . . . Relay Couplers Released 1 | . . . . 1 . . . . Machine Destruction 1 | . . . . 1 . . . . Fabnet Peak Effective % . | . . . . . . . . . Robots Rewired . | . . . . . . . . . Allies Hacked . | . . . . . . . . . Hacks Repelled . | . . . . . . . . . Allies | -11 -10 -9 -8 -7 -7 -7 -7 -7 -------- Run | Yrd Mat Mat Mat Fac Low Low Zio Dee Total Allies 4 | . . . . . . . 4 . Largest Group 4 | . . . . . . . 4 4 Highest-Rated Group 112 | . . . . . . . 112 112 Highest-Rated Ally 31 | . . . . . . . 31 31 Total Orders . | . . . . . . . . . Ally Attacks 42 | . . . . . . . . 42 Total Damage 475 | . . . . . . . . 475 Kills 4 | . . . . . . . . 4 Allies Corrupted . | . . . . . . . . . Allies Melted . | . . . . . . . . . Intel | -11 -10 -9 -8 -7 -7 -7 -7 -7 ------- Run | Yrd Mat Mat Mat Fac Low Low Zio Dee Robot Analysis Total . | . . . . . . . . . Derelict Logs Recovered 5 | . . . . . . 2 3 . Drone Launches . | . . . . . . . . . Drone Recoveries . | . . . . . . . . . Exploration | -11 -10 -9 -8 -7 -7 -7 -7 -7 ------------- Run | Yrd Mat Mat Mat Fac Low Low Zio Dee Turns Passed 12095 | 122 906 504 1384 3300 1157 422 1942 2358 Spaces Moved 6365 | 53 397 215 607 1654 500 258 1238 1443 Core 4 | 3 . . . . . . . 1 Treads 6307 | 50 397 161 607 1654 500 258 1238 1442 Legs . | . . . . . . . . . Wheels 54 | . . 54 . . . . . . Hover . | . . . . . . . . . Flight . | . . . . . . . . . Fastest Speed 50 | 50 160 95 148 148 151 151 151 50 Average Speed 164 | 153 185 143 152 170 223 151 151 151 Slowest Speed 320 | 160 320 240 236 232 312 151 151 236 Overloaded Moves . | . . . . . . . . . Propulsion Burnouts . | . . . . . . . . . Robots Hopped . | . . . . . . . . . Cave-ins Triggered . | . . . . . . . . . Exploration Rate (%) 52 | 5 56 15 54 52 67 54 86 80 Regions Visited 8 Branch Regions 4 Pre-discovered Areas 2 | . . . . . . . 2 . Known Exits Taken 2 | . . . . 1 . . 1 . Unknown Exits Taken 6 | 1 1 1 1 . 1 1 . . Scrap Searched 4 | . . . . . 1 . 3 . Spaces Dug 12 | . . . . 8 . . . 4 Terrain Destroyed 110 | . . . 45 13 2 . 3 47 Melee 12 | . . . . 8 . . . 4 Projectile 2 | . . . . 1 . . . 1 AOE 96 | . . . 45 4 2 . 3 42 Terrain Rammed . | . . . . . . . . . Walls Destroyed . | . . . . . . . . . Machines Disabled . | . . . . . . . . . Actions | -11 -10 -9 -8 -7 -7 -7 -7 -7 --------- Run | Yrd Mat Mat Mat Fac Low Low Zio Dee Total 7383 | 71 483 328 922 1932 524 276 1290 1557 Wait 338 | . 20 36 159 72 1 . 23 27 Move 6357 | 52 396 214 606 1653 499 257 1237 1443 Hop . | . . . . . . . . . Pick Up 75 | 1 7 7 19 21 . 4 3 13 Fast Attach 37 | 6 2 10 6 8 2 . 1 2 Attach 27 | . . 1 5 10 4 . 1 6 Detach 10 | . 1 2 1 4 . . . 2 Swap 77 | . 4 1 19 34 3 1 6 9 Drop 68 | . 4 11 19 24 . . 4 6 Fire 362 | 12 49 46 88 94 15 14 6 38 Melee 28 | . . . . 8 . . 9 11 Ram . | . . . . . . . . . Kick . | . . . . . . . . . Crush . | . . . . . . . . . Escape Stasis 4 | . . . . 4 . . . . Rewire . | . . . . . . . . . Trap . | . . . . . . . . . Miscellaneous . | . . . . . . . . . Route ------- -11/Scrapyard -10/Materials (discovered 3 exits: *Mat / [*Min] / [Sub]) -9/Materials -8/Materials -7/Factory (discovered 4 exits: *Fac x2 / *Low x2) -7/Lower Caves -7/Lower Caves -7/Zion (discovered 2 exits: *Dee / [*Pro]) -7/Deep Caves (discovered 1 exit: [*Pro]) History --------- Turn | Location | Event 9 | -11/Scrapyard | Discovered new exit (range 15) 123 | -11/Scrapyard | Entered Materials 308 | -10/Materials | Build established: Mutant 350 | -10/Materials | Discovered new exit (range 10) 464 | -10/Materials | Discovered new exit (range 16) 706 | -10/Materials | Discovered new exit (range 9) 1029 | -10/Materials | Entered another Materials area 1029 | -9/Materials | Evolved 2 slots: Propulsion x1, Utility x1 1501 | -9/Materials | Discovered new exit (range 7) 1533 | -9/Materials | Entered another Materials area 1533 | -8/Materials | Evolved 2 slots: Propulsion x1, Utility x1 2568 | -8/Materials | Build established: Scavenger-Mutant 2832 | -8/Materials | Discovered new exit (range 7) 2917 | -8/Materials | Entered Factory 2917 | -7/Factory | Evolved 2 slots: Propulsion x1, Weapon x1 2943 | -7/Factory | Identified exit to DSF 3214 | -7/Factory | Build established: Scavenger-Tank 3523 | -7/Factory | Garrison activated, responded to threat 4196 | -7/Factory | Build established: Tank 4233 | -7/Factory | Discovered new exit (range 11) 4330 | -7/Factory | Identified exit to Factory 4676 | -7/Factory | Found Prototype Launcher 4680 | -7/Factory | Identified Rocket Array 4829 | -7/Factory | Discovered exit to Factory (range 16) 4926 | -7/Factory | System corruption reached 10% 5320 | -7/Factory | Core integrity fell below 50% 5483 | -7/Factory | Identified exit to Lower Caves 6217 | -7/Factory | Entered Lower Caves 6521 | -7/Lower Caves | Build established: Scavenger-Tank 7147 | -7/Lower Caves | Lost 4 parts (2n1u1w) 7284 | -7/Lower Caves | Spotted B-75 Beast 7358 | -7/Lower Caves | Discovered new exit (range 13) 7374 | -7/Lower Caves | Entered another Lower Caves area 7456 | -7/Lower Caves | Learned Factory terminal intel 7512 | -7/Lower Caves | Spotted B-75 Beast 7589 | -7/Lower Caves | Build established: Mutant 7621 | -7/Lower Caves | Learned Factory emergency access door positions 7778 | -7/Lower Caves | Discovered new exit (range 12) 7796 | -7/Lower Caves | Entered Zion 7841 | -7/Zion | System corruption reached 30% 7867 | -7/Zion | System corruption cleaned by Quarantine Array 7929 | -7/Zion | Discovered new exit (range 11) 8164 | -7/Zion | Gained Derelict followers 8232 | -7/Zion | Found Prototype Special Weapon 8232 | -7/Zion | Identified RU-N14's Throwing Claymores 8235 | -7/Zion | Found RU-N14's Throwing Claymores 8238 | -7/Zion | Found RU-N14's Throwing Claymores 8241 | -7/Zion | Found RU-N14's Throwing Claymores 8298 | -7/Zion | Learned Factory terminal intel 8306 | -7/Zion | Given the Hacking Drone Bay 8381 | -7/Zion | Identified exit to Deep Caves 8402 | -7/Zion | Learned Factory emergency access door positions 8457 | -7/Zion | Learned location of Data Miner (-6) 8535 | -7/Zion | Learned location of Armory (-3) 8626 | -7/Zion | Learned location of 1 exit from Factory 8774 | -7/Zion | Received a hallucinogenic algorithm 9717 | -7/Zion | Saw the warning signs outside the Deep Caves entrance 9738 | -7/Zion | Entered Deep Caves 9738 | -7/Deep Caves | Accompanied by 4 allies 9813 | -7/Deep Caves | Found Unknown Processor 9814 | -7/Deep Caves | Identified Surveybot 24 Chip 9921 | -7/Deep Caves | Attacked by Z-Imprinter 9930 | -7/Deep Caves | Destroyed Z-Imprinter 9965 | -7/Deep Caves | Found Prototype Protection 10041 | -7/Deep Caves | Z-Facility disabled 10060 | -7/Deep Caves | Found Prototype Protection 10067 | -7/Deep Caves | Identified Zio. Weapon Casing (x2) 10180 | -7/Deep Caves | Found Zio. Weapon Casing 10237 | -7/Deep Caves | Found Zio. Weapon Casing 10362 | -7/Deep Caves | Build established: Scavenger-Mutant 11944 | -7/Deep Caves | Discovered new exit (range 7) 12002 | -7/Deep Caves | Spotted AG-13362 12034 | -7/Deep Caves | Core integrity fell below 20% 12036 | -7/Deep Caves | Destroyed AG-13362 12072 | -7/Deep Caves | Triggered Deep Caves wall 12077 | -7/Deep Caves | Exposed GOLEM chamber 12081 | -7/Deep Caves | Found GOLEM Unit 12089 | -7/Deep Caves | Spotted AS-06568 12089 | -7/Deep Caves | Spotted AS-85873 12095 | -7/Deep Caves | Released all parts (7) 12096 | -7/Deep Caves | Destroyed by as-63750 with Assembled Maul Last Messages --------------- 12093_ Destroyed Asb. Hover Unit. 12093_ as-41719 destroyed. 12093_ A GOLEM Unit tumbles out of the Wall Chamber. 12093_ Destroyed Unknown Special Weapon. 12094_ AG-08958 GOLEM Unit beginning Prototype Leg integration. 12094_ GOLEM Unit springs to life. 12094_ as-54113 IFF system glitched. 12095_ AG-13593 GOLEM Unit beginning Prototype Leg integration. 12095_ Adv. Treads destroyed. 12095_ Shock Bomb Launcher destroyed. 12095_ Released Imp. EM Pulse Cannon. 12095_ Released Huge Storage Unit. 12095_ Released Imp. Light Cannon. 12095_ Released Exp. Heat Sink. 12095_ Released Zio. Light DM Reactor. 12095_ Released Lgt. Treads. 12095_ Released Med. Treads. Map ----- +----------------------------------------------------+ | ??????????????????????????????## | | ??????????????????????????????# | | ??????????????????????????????# | | ??????????????????????????????# | | ??????????????????????????????# | | ??????????????????????????????# | | ??????????????????????????????## | | ???????????????????????????????# | | ???????????????????????????????## | | ????????????????????????????????## | | ???????? ????????????????????# | | ??????? A ??????????????????# | | ??????? A ???????????????# | | ???????g h ?????????????# | | ??????? aa [ ???????????# | | ???????? [ *??? ?????## | | ???????? *= ???## | | ???????? / ??## | | ???????? aa / ??# | | ????????#G * #?# | | ????????"G a ! ! ! ### | | ??????#""a aa ## | | ??????#!!!a* a ! s ## | | ??????#!!a*!a ## | | ???????"a!!!!a = = # # | | ???????##]@!!h = = # # | | ????????"a/]! # | | ????????"![![ ## # | | ????????"!*! ## | | ????????""" = #? | | ????????" = = h ## | | ????????"" g ## | | ????????" ## | | ????????"" ###### | | ????????" ;% ##????? | | ????????" #### ; ##?????? | | ????????""" ###??# ; ##??????? | | ?????????" ????### # #???????? | | ?????????#######?????######???????? | | | | | | | | | | | | | | | | | | | | | | | +----------------------------------------------------+ Best States ------------- Heat Dissipation 61 Energy Generation 27 Energy Capacity 700 Matter Stores 300 Matter Capacity 300 Sight Range 16 Terrain Scan Density 2010 Armor Coverage 225 Propulsion Shielding 33 Weapon Shielding 100 Evasion (%) 41 Recoil Reduction 5 Offensive Hacking 10 Item Schematics ----------------- Coolant Injector | -7/Zion | Archive Fusion Compressor | -7/Zion | Archive Launcher Guidance Computer | -7/Zion | Archive Drone Bay | -7/Zion | Archive Corruption Screen | -7/Zion | Archive Hvy. Plasma Cannon | -7/Zion | Archive Hvy. Battle Rifle | -7/Zion | Archive Field Propulsion Drive | -7/Zion | Archive Mak. Trap Scanner | -7/Zion | Archive Remote Datajack | -7/Zion | Archive Imp. System Restoration Module | -7/Zion | Archive Imp. Trap Scanner | -7/Zion | Archive Gravmag System | -7/Zion | Archive Matter Filter | -7/Zion | Archive 0b10 Decoder Chip [Skirmisher] | -7/Zion | Archive Robot Schematics ------------------ T-07 Excavator | -7/Zion | Archive L-31 Rogue | -7/Zion | Archive M-14 Sweeper | -7/Zion | Archive G-73 Enforcer | -7/Zion | Archive Fabricated ------------ Nothing Alien Tech Used ----------------- None Achievements -------------- None Challenges ------------ None Game ------ Seed GodColdAutogun Manual? 0 Play Time 01:13:45 Cumulative 387.9 hours Start 2024.04.28 @ 22:54:48 End 2024.04.29 @ 17:37:58 Sessions 3 Manual Loads 0 Difficulty Rogue Special Mode None Game No. 451 Rogue 451 Adventurer 0 Explorer 0 Win Type - Total 33 Types 22/3/7/1/0/0/0/0/0 Lore% 70 Gallery% 80 Achievement% 60 Wizard Run 0 Options --------- Layout 1 ASCII 1 Keyboard 1 Movement Numpad Keybinds 0 Fullscreen 1 Font 24/Smallcaps Map View 50x35 Zoom Use 0% Tactical HUD 1 Map Filters NONE Filters NONE Steam 1 RUN: 7c643af6-ff51-4892-a2e0-f2c29230a1a2